[Event "DVM U10 2024"]
[Site "Duesseldorf"]
[Date "2024.12.27"]
[Round "1"]
[White "Jiang, Alexander D"]
[Black "Boeskov, Steffen"]
[Result "1-0"]
[ECO "C57"]
[WhiteElo "1958"]
[BlackElo "1933"]
[Annotator "RC"]
[PlyCount "43"]
[EventDate "2024.12.23"]
[EventType "team-tourn"]
[EventRounds "7"]
[EventCountry "GER"]
[SourceTitle "playchess.com"]
[Source "ChessBase"]
[SourceQuality "1"]
[TimeControl "3300+5"]

1. e4 {[%emt 0:00:01]} e5 {[%emt 0:00:07]} 2. Nf3 {[%emt 0:00:11]} Nc6 {[%emt 0:00:18]} 3. Bc4 {[%emt 0:00:07]} Nf6 {[%emt 0:00:22]} 4. Ng5 {[%emt 0:00:13]} d5 {[%emt 0:01:56]} 5. exd5 {[%emt 0:00:08]} Nxd5 {[%emt 0:00:24]} 6. Qf3 {[%emt 0:00:14]} Qxg5 {[%emt 0:00:47]} 7. Bxd5 {[%emt 0:00:08]} Be6 {[%emt 0:00:35]} 8. Bxc6+ {[%emt 0:00:12]} Bd7 {[%emt 0:01:49]} 9. Bxd7+ {[%emt 0:00:35]} Kxd7 {[%emt 0:00:23]} 10. O-O {[%emt 0:00:53]} f5 {[%emt 0:01:20]} 11. Qd5+ {[%emt 0:02:08]} Bd6 {[%emt 0:00:15]} 12. d4 {[%emt 0:00:29]} c6 {[%emt 0:00:48]} 13. Qxd6+ {[%emt 0:00:20]} Kxd6 {[%emt 0:00:17]} 14. dxe5+ {[%emt 0:00:17]} Kxe5 {[%emt 0:00:39]} 15. Bxg5 {[%emt 0:00:12]} f4 {[%emt 0:00:52]} 16. Re1+ {[%emt 0:00:58]} Kf5 {[%emt 0:00:20]} 17. Be7 {[%emt 0:00:15]} Rhe8 {[%emt 0:00:34]} 18. Nc3 {[%emt 0:00:26]} Rac8 {[%emt 0:03:27]} 19. Bd6 {[%emt 0:01:12]} Rxe1+ {[%emt 0:00:25]} 20. Rxe1 {[%emt 0:00:13]} Rd8 {[%emt 0:00:21]} 21. Ne4 {[%emt 0:00:45]} Re8 {[%emt 0:00:26]} 22. Ng3+ {[%emt 0:01:57]} 1-0

[Event "DVM U10 2024"]
[Site "Duesseldorf"]
[Date "2024.12.27"]
[Round "1"]
[White "Mueller, Konstantin"]
[Black "Sriram, Yashasri"]
[Result "1-0"]
[ECO "C18"]
[WhiteElo "1957"]
[BlackElo "1520"]
[Annotator "RC"]
[PlyCount "57"]
[EventDate "2024.12.23"]
[EventType "team-tourn"]
[EventRounds "7"]
[EventCountry "GER"]
[SourceTitle "playchess.com"]
[Source "ChessBase"]
[SourceQuality "1"]
[TimeControl "3300+5"]

1. e4 {[%emt 0:00:02]} e6 {[%emt 0:00:57]} 2. d4 {[%emt 0:00:06]} d5 {[%emt 0:00:17]} 3. Nc3 {[%emt 0:00:15]} Bb4 {[%emt 0:00:14]} 4. e5 {[%emt 0:00:06]} c5 {[%emt 0:00:12]} 5. a3 {[%emt 0:00:07]} Bxc3+ {[%emt 0:00:16]} 6. bxc3 {[%emt 0:00:09]} Ne7 {[%emt 0:00:22]} 7. Qg4 {[%emt 0:00:08]} Ng6 {[%emt 0:00:12]} 8. h4 {[%emt 0:00:47]} h5 {[%emt 0:00:17]} 9. Qd1 {[%emt 0:00:25]} Nc6 {[%emt 0:00:32]} 10. Nf3 {[%emt 0:00:16]} c4 {[%emt 0:01:53]} 11. Be2 {[%emt 0:01:06]} Nce7 {[%emt 0:01:39]} 12. Ng5 {[%emt 0:02:09]} f6 {[%emt 0:01:52]} 13. exf6 {[%emt 0:01:17]} gxf6 {[%emt 0:00:13]} 14. Nh3 {[%emt 0:00:15]} Nxh4 {[%emt 0:02:50]} 15. Nf4 {[%emt 0:00:42]} Nhg6 {[%emt 0:04:20]} 16. Bxh5 {[%emt 0:00:23]} Kf7 {[%emt 0:00:59]} 17. Nxg6 {[%emt 0:00:55]} Nxg6 {[%emt 0:00:45]} 18. Qg4 {[%emt 0:00:38]} Rg8 {[%emt 0:00:59]} 19. Bxg6+ {[%emt 0:00:15]} Ke7 {[%emt 0:01:47]} 20. Rh7+ {[%emt 0:00:53]} Kd6 {[%emt 0:00:38]} 21. Qg3+ {[%emt 0:01:23]} Kc6 {[%emt 0:00:34]} 22. f4 {[%emt 0:01:10]} f5 {[%emt 0:03:15]} 23. Rh6 {[%emt 0:03:49]} Qf8 {[%emt 0:01:03]} 24. Qh4 {[%emt 0:00:31]} Qg7 {[%emt 0:02:11]} 25. Be3 {[%emt 0:00:31]} Bd7 {[%emt 0:00:59]} 26. O-O-O {[%emt 0:00:27]} Raf8 {[%emt 0:00:49]} 27. Rh7 {[%emt 0:00:59]} Qxg6 {[%emt 0:00:48]} 28. Qe7 {[%emt 0:00:07]} b6 {[%emt 0:02:43]} 29. Qxd7# {[%emt 0:00:25]} 1-0

[Event "DVM U10 2024"]
[Site "Duesseldorf"]
[Date "2024.12.27"]
[Round "1"]
[White "Peters, Leopold"]
[Black "Özdemir, Anna Valentina"]
[Result "1-0"]
[ECO "D37"]
[WhiteElo "1701"]
[BlackElo "954"]
[Annotator "NA RC"]
[PlyCount "46"]
[EventDate "2024.12.23"]
[EventType "team-tourn"]
[EventRounds "7"]
[EventCountry "GER"]
[SourceTitle "playchess.com"]
[Source "ChessBase"]
[SourceQuality "1"]
[TimeControl "3300+5"]

1. d4 {[%emt 0:00:03]} d5 {[%emt 0:00:06]} 2. c4 {[%emt 0:00:07]} e6 {[%emt 0:00:24]} 3. Nc3 {[%emt 0:00:21]} Nf6 {[%emt 0:00:25]} 4. Nf3 {[%emt 0:00:31]} Bd7 {[%emt 0:00:37]} 5. Bf4 {[%emt 0:00:33]} c5 {[%emt 0:01:30]} 6. cxd5 {[%emt 0:01:10]} exd5 {[%emt 0:00:22]} 7. dxc5 {[%emt 0:00:42]} Bxc5 {[%emt 0:00:21]} 8. e3 {[%emt 0:00:49]} O-O {[%emt 0:01:19]} 9. a3 {[%emt 0:01:10]} Nc6 {[%emt 0:01:11]} 10. Nxd5 {[%emt 0:02:00]} Nxd5 {[%emt 0:01:42]} 11. Qxd5 {[%emt 0:00:28]} Bb6 {[%emt 0:01:26]} 12. Qd1 {[%emt 0:02:20]} Be6 {[%emt 0:02:40]} 13. Be2 {[%emt 0:01:06]} Qf6 {[%emt 0:01:39]} 14. Qc2 {[%emt 0:01:48]} Rac8 {[%emt 0:01:01]} 15. Qb1 {[%emt 0:01:34]} Ba5+ {[%emt 0:01:02]} 16. b4 {[%emt 0:00:45]} Qc3+ {[%emt 0:00:47]} 17. Nd2 {[%emt 0:02:30]} Bf5 {[%emt 0:02:11]} 18. Qc1 {[%emt 0:01:44]} Qxc1+ {[%emt 0:01:13]} 19. Rxc1 {[%emt 0:00:22]} Bc7 {[%emt 0:01:01]} 20. Bxc7 {[%emt 0:00:30]} Rxc7 {[%emt 0:00:16]} 21. O-O {[%emt 0:00:15]} Rd7 {[%emt 0:01:03]} 22. Nf3 {[%emt 0:00:23]} Rd6 {[%emt 0:01:05]} 23. Rfd1 {[%emt 0:01:11]} Rg6 {[%emt 0:00:57]} 1-0

[Event "DVM U10 2024"]
[Site "Duesseldorf"]
[Date "2024.12.27"]
[Round "1"]
[White "Schmidt, Jan"]
[Black "Rogozhin, Georg"]
[Result "1-0"]
[ECO "D15"]
[WhiteElo "1688"]
[BlackElo "1232"]
[Annotator "NA RC"]
[PlyCount "81"]
[EventDate "2024.12.23"]
[EventType "team-tourn"]
[EventRounds "7"]
[EventCountry "GER"]
[SourceTitle "playchess.com"]
[Source "ChessBase"]
[SourceQuality "1"]
[TimeControl "3300+5"]

1. d4 {[%emt 0:00:02]} d5 {[%emt 0:00:05]} 2. c4 {[%emt 0:00:08]} c6 {[%emt 0:00:09]} 3. Nc3 {[%emt 0:00:09]} Nf6 {[%emt 0:00:06]} 4. Nf3 {[%emt 0:00:06]} Be6 {[%emt 0:00:07]} 5. c5 {[%emt 0:01:22]} g6 {[%emt 0:00:12]} 6. Bg5 {[%emt 0:00:28]} Bg7 {[%emt 0:00:16]} 7. e3 {[%emt 0:00:15]} Nbd7 {[%emt 0:00:09]} 8. Bd3 {[%emt 0:00:30]} O-O {[%emt 0:00:13]} 9. O-O {[%emt 0:00:05]} Qc7 {[%emt 0:00:26]} 10. b4 {[%emt 0:00:55]} a6 {[%emt 0:00:15]} 11. a4 {[%emt 0:01:53]} Nh5 {[%emt 0:01:27]} 12. Bxe7 {[%emt 0:01:25]} Rfe8 {[%emt 0:00:34]} 13. Bd6 {[%emt 0:00:18]} Qd8 {[%emt 0:01:14]} 14. Qb3 {[%emt 0:04:29]} Qf6 {[%emt 0:00:40]} 15. b5 {[%emt 0:04:53]} a5 {[%emt 0:00:26]} 16. Qc2 {[%emt 0:05:29]} Bg4 {[%emt 0:01:31]} 17. Be2 {[%emt 0:01:07]} Bxf3 {[%emt 0:00:53]} 18. Bxf3 {[%emt 0:00:11]} Bf8 {[%emt 0:01:45]} 19. Bxh5 {[%emt 0:04:32]} gxh5 {[%emt 0:00:28]} 20. Bf4 {[%emt 0:00:20]} Bh6 {[%emt 0:00:23]} 21. Bxh6 {[%emt 0:00:24]} Qxh6 {[%emt 0:00:09]} 22. Qf5 {[%emt 0:00:10]} Nf6 {[%emt 0:00:16]} 23. Rab1 {[%emt 0:00:40]} Kh8 {[%emt 0:00:11]} 24. bxc6 {[%emt 0:00:29]} bxc6 {[%emt 0:00:12]} 25. Rb7 {[%emt 0:00:10]} Qg6 {[%emt 0:00:12]} 26. Qf3 {[%emt 0:02:09]} Rg8 {[%emt 0:00:24]} 27. Ne2 {[%emt 0:02:44]} Ne4 {[%emt 0:00:24]} 28. Nf4 {[%emt 0:00:51]} Qg5 {[%emt 0:00:35]} 29. Nxh5 {[%emt 0:02:33]} Nd2 {[%emt 0:00:52]} 30. Qf6+ {[%emt 0:00:15]} Qxf6 {[%emt 0:00:56]} 31. Nxf6 {[%emt 0:00:21]} Rxg2+ {[%emt 0:00:19]} 32. Kxg2 {[%emt 0:00:11]} Nxf1 {[%emt 0:00:23]} 33. Kxf1 {[%emt 0:00:00]} Kg7 {[%emt 0:00:16]} 34. Nd7 {[%emt 0:00:17]} f5 {[%emt 0:00:46]} 35. Ne5+ {[%emt 0:00:27]} Kf6 {[%emt 0:00:26]} 36. Nxc6 {[%emt 0:00:11]} h5 {[%emt 0:00:06]} 37. Ne7 {[%emt 0:00:45]} Ke6 {[%emt 0:00:14]} 38. c6 {[%emt 0:00:41]} Kd6 {[%emt 0:00:12]} 39. c7 {[%emt 0:00:09]} Kxe7 {[%emt 0:00:14]} 40. c8=Q+ {[%emt 0:00:08]} Kd6 {[%emt 0:00:19]} 41. Qd7# {[%emt 0:00:11]} 1-0

[Event "DVM U10 2024"]
[Site "Duesseldorf"]
[Date "2024.12.27"]
[Round "1"]
[White "Busch, Jonathan Luis"]
[Black "Satheesh, Dharshini"]
[Result "1-0"]
[ECO "A25"]
[WhiteElo "1655"]
[BlackElo "1643"]
[Annotator "NA RC"]
[PlyCount "41"]
[EventDate "2024.12.23"]
[EventType "team-tourn"]
[EventRounds "7"]
[EventCountry "GER"]
[SourceTitle "playchess.com"]
[Source "ChessBase"]
[SourceQuality "1"]
[TimeControl "3300+5"]

1. c4 {[%emt 0:00:03]} e5 {[%emt 0:00:06]} 2. g3 {[%emt 0:00:08]} Nf6 {[%emt 0:00:28]} 3. Bg2 {[%emt 0:00:07]} Nc6 {[%emt 0:01:14]} 4. e3 {[%emt 0:00:24]} d6 {[%emt 0:02:53]} 5. Nc3 {[%emt 0:00:27]} Be6 {[%emt 0:02:46]} 6. d3 {[%emt 0:03:48]} d5 {[%emt 0:01:56]} 7. cxd5 {[%emt 0:01:01]} Nxd5 {[%emt 0:01:14]} 8. a3 {[%emt 0:01:05]} Bc5 {[%emt 0:01:35]} 9. Nge2 {[%emt 0:00:44]} O-O {[%emt 0:01:54]} 10. O-O {[%emt 0:00:29]} Qd7 {[%emt 0:01:33]} 11. Qc2 {[%emt 0:01:27]} Rad8 {[%emt 0:00:51]} 12. Nxd5 {[%emt 0:00:19]} Bxd5 {[%emt 0:01:42]} 13. Qxc5 {[%emt 0:00:41]} Bxg2 {[%emt 0:00:12]} 14. Kxg2 {[%emt 0:00:10]} Qxd3 {[%emt 0:00:06]} 15. Nc3 {[%emt 0:01:45]} Qc2 {[%emt 0:05:31]} 16. Qb5 {[%emt 0:01:42]} Rb8 {[%emt 0:01:40]} 17. Qa4 {[%emt 0:01:15]} Qxa4 {[%emt 0:01:46]} 18. Nxa4 {[%emt 0:00:11]} Rbd8 {[%emt 0:00:11]} 19. b4 {[%emt 0:00:22]} a6 {[%emt 0:00:23]} 20. Bb2 {[%emt 0:00:34]} f6 {[%emt 0:00:57]} 21. Rfd1 {[%emt 0:00:16]} 1-0

[Event "DVM U10 2024"]
[Site "Duesseldorf"]
[Date "2024.12.27"]
[Round "1"]
[White "Kukhtichev, Maksim"]
[Black "Breaz, Arthur"]
[Result "1-0"]
[ECO "C54"]
[WhiteElo "1639"]
[BlackElo "1123"]
[Annotator "NA RC"]
[PlyCount "75"]
[EventDate "2024.12.23"]
[EventType "team-tourn"]
[EventRounds "7"]
[EventCountry "GER"]
[SourceTitle "playchess.com"]
[Source "ChessBase"]
[SourceQuality "1"]
[TimeControl "3300+5"]

1. e4 {[%emt 0:00:03]} e5 {[%emt 0:00:07]} 2. Nf3 {[%emt 0:00:04]} Nc6 {[%emt 0:00:08]} 3. d4 {[%emt 0:00:04]} exd4 {[%emt 0:00:08]} 4. Bc4 {[%emt 0:00:04]} Bc5 {[%emt 0:00:32]} 5. c3 {[%emt 0:00:04]} Nge7 {[%emt 0:00:13]} 6. cxd4 {[%emt 0:00:27]} Bb4+ {[%emt 0:00:02]} 7. Bd2 {[%emt 0:00:14]} d5 {[%emt 0:01:36]} 8. exd5 {[%emt 0:00:32]} Nxd5 {[%emt 0:00:22]} 9. O-O {[%emt 0:00:58]} O-O {[%emt 0:00:23]} 10. a3 {[%emt 0:00:28]} Bxd2 {[%emt 0:00:28]} 11. Qxd2 {[%emt 0:01:11]} Bg4 {[%emt 0:01:02]} 12. Bxd5 {[%emt 0:00:14]} Qxd5 {[%emt 0:00:15]} 13. Nc3 {[%emt 0:00:04]} Qf5 {[%emt 0:01:10]} 14. Ne1 {[%emt 0:02:40]} Rfe8 {[%emt 0:01:31]} 15. f3 {[%emt 0:01:40]} Bh5 {[%emt 0:00:40]} 16. g4 {[%emt 0:00:09]} Qg6 {[%emt 0:00:07]} 17. Ng2 {[%emt 0:00:13]} Bxg4 {[%emt 0:00:34]} 18. fxg4 {[%emt 0:00:06]} Qxg4 {[%emt 0:00:15]} 19. d5 {[%emt 0:01:00]} Rad8 {[%emt 0:00:13]} 20. Qf2 {[%emt 0:00:08]} Ne5 {[%emt 0:00:49]} 21. Qf4 {[%emt 0:01:10]} Qg6 {[%emt 0:02:04]} 22. Rae1 {[%emt 0:01:08]} Nd3 {[%emt 0:00:29]} 23. Rxe8+ {[%emt 0:00:06]} Rxe8 {[%emt 0:00:06]} 24. Qxc7 {[%emt 0:00:28]} Ne1 {[%emt 0:03:22]} 25. Qg3 {[%emt 0:00:54]} Qb6+ {[%emt 0:01:25]} 26. Qf2 {[%emt 0:00:38]} Nf3+ {[%emt 0:00:36]} 27. Kh1 {[%emt 0:00:19]} Qxf2 {[%emt 0:01:30]} 28. Rxf2 {[%emt 0:00:04]} Ng5 {[%emt 0:00:52]} 29. Nf4 {[%emt 0:01:19]} g6 {[%emt 0:05:41]} 30. d6 {[%emt 0:01:42]} h5 {[%emt 0:00:38]} 31. Nfd5 {[%emt 0:00:36]} Kg7 {[%emt 0:00:54]} 32. d7 {[%emt 0:03:41]} Rd8 {[%emt 0:00:23]} 33. Nf6 {[%emt 0:00:11]} Nh3 {[%emt 0:00:55]} 34. Rf1 {[%emt 0:00:50]} h4 {[%emt 0:01:50]} 35. Nb5 {[%emt 0:00:23]} Kf8 {[%emt 0:02:39]} 36. Nd6 {[%emt 0:00:42]} Rxd7 {[%emt 0:00:40]} 37. Nxd7+ {[%emt 0:00:10]} Ke7 {[%emt 0:00:13]} 38. Ne4 {[%emt 0:01:42]} 1-0

[Event "DVM U10 2024"]
[Site "Duesseldorf"]
[Date "2024.12.27"]
[Round "1"]
[White "Braren, Ove Neelis"]
[Black "White, William"]
[Result "1-0"]
[ECO "C45"]
[WhiteElo "1634"]
[BlackElo "1750"]
[Annotator "NA RC"]
[PlyCount "91"]
[EventDate "2024.12.23"]
[EventType "team-tourn"]
[EventRounds "7"]
[EventCountry "GER"]
[SourceTitle "playchess.com"]
[Source "ChessBase"]
[SourceQuality "1"]
[TimeControl "3300+5"]

1. e4 {[%emt 0:00:03]} e5 {[%emt 0:00:07]} 2. Nf3 {[%emt 0:00:06]} Nc6 {[%emt 0:00:06]} 3. d4 {[%emt 0:00:06]} exd4 {[%emt 0:00:06]} 4. Nxd4 {[%emt 0:00:08]} Nxd4 {[%emt 0:04:03]} 5. Qxd4 {[%emt 0:00:20]} d6 {[%emt 0:00:42]} 6. Nc3 {[%emt 0:01:21]} Nf6 {[%emt 0:00:48]} 7. Be3 {[%emt 0:01:14]} Be7 {[%emt 0:01:18]} 8. Bc4 {[%emt 0:02:20]} O-O {[%emt 0:00:55]} 9. O-O {[%emt 0:01:57]} Ng4 {[%emt 0:00:51]} 10. Bf4 {[%emt 0:01:40]} Bf6 {[%emt 0:00:35]} 11. Qd2 {[%emt 0:00:19]} Ne5 {[%emt 0:00:49]} 12. Be2 {[%emt 0:01:13]} Ng6 {[%emt 0:00:39]} 13. Be3 {[%emt 0:02:06]} Bd7 {[%emt 0:00:49]} 14. Rad1 {[%emt 0:01:07]} Bc6 {[%emt 0:00:56]} 15. Bd4 {[%emt 0:03:51]} Re8 {[%emt 0:01:00]} 16. f3 {[%emt 0:03:03]} Bxd4+ {[%emt 0:01:57]} 17. Qxd4 {[%emt 0:00:08]} Nf4 {[%emt 0:00:09]} 18. Bc4 {[%emt 0:03:21]} Qg5 {[%emt 0:00:14]} 19. Qd2 {[%emt 0:01:07]} a6 {[%emt 0:02:44]} 20. a4 {[%emt 0:01:57]} Nh3+ {[%emt 0:01:01]} 21. Kh1 {[%emt 0:00:12]} Qxd2 {[%emt 0:00:41]} 22. Rxd2 {[%emt 0:00:14]} Ng5 {[%emt 0:00:02]} 23. Nd5 {[%emt 0:02:25]} Ne6 {[%emt 0:01:16]} 24. a5 {[%emt 0:03:59]} Rac8 {[%emt 0:02:26]} 25. Rfd1 {[%emt 0:00:31]} Bd7 {[%emt 0:01:26]} 26. Kg1 {[%emt 0:00:48]} Nd8 {[%emt 0:00:49]} 27. c3 {[%emt 0:02:32]} Nc6 {[%emt 0:02:13]} 28. Ra1 {[%emt 0:00:59]} Ne7 {[%emt 0:02:26]} 29. Kf2 {[%emt 0:01:49]} Be6 {[%emt 0:01:54]} 30. Rad1 {[%emt 0:01:39]} Nxd5 {[%emt 0:01:41]} 31. Bxd5 {[%emt 0:00:08]} Bxd5 {[%emt 0:00:52]} 32. Rxd5 {[%emt 0:00:09]} Re6 {[%emt 0:00:38]} 33. R1d2 {[%emt 0:00:16]} Rce8 {[%emt 0:00:15]} 34. c4 {[%emt 0:01:30]} Re5 {[%emt 0:00:14]} 35. b4 {[%emt 0:00:13]} Kf8 {[%emt 0:00:52]} 36. Rxe5 {[%emt 0:02:12]} Rxe5 {[%emt 0:00:06]} 37. Rd5 {[%emt 0:00:05]} Ke7 {[%emt 0:01:08]} 38. Ke3 {[%emt 0:00:05]} c6 {[%emt 0:00:05]} 39. Rxe5+ {[%emt 0:00:05]} dxe5 {[%emt 0:00:05]} 40. h4 {[%emt 0:00:05]} Kd6 {[%emt 0:09:14]} 41. Kd3 {[%emt 0:03:08]} Ke6 {[%emt 0:00:00]} 42. g4 {[%emt 0:00:14]} g6 {[%emt 0:00:00]} 43. g5 {[%emt 0:00:05]} f6 {[%emt 0:00:00]} 44. Ke3 {[%emt 0:00:05]} Kf7 {[%emt 0:00:00]} 45. Kf2 {[%emt 0:00:05]} fxg5 {[%emt 0:00:00]} 46. hxg5 {[%emt 0:02:49]} 1-0

[Event "DVM U10 2024"]
[Site "Duesseldorf"]
[Date "2024.12.27"]
[Round "1"]
[White "Bashirova, Sona"]
[Black "Gheng, Hannes Lucas"]
[Result "1-0"]
[ECO "D02"]
[WhiteElo "1626"]
[BlackElo "1482"]
[Annotator "NA RC"]
[PlyCount "35"]
[EventDate "2024.12.23"]
[EventType "team-tourn"]
[EventRounds "7"]
[EventCountry "GER"]
[SourceTitle "playchess.com"]
[Source "ChessBase"]
[SourceQuality "1"]
[TimeControl "3300+5"]

1. d4 {[%emt 0:00:03]} d5 {[%emt 0:00:05]} 2. Bf4 {[%emt 0:00:07]} e6 {[%emt 0:00:13]} 3. e3 {[%emt 0:00:11]} Nf6 {[%emt 0:00:05]} 4. Nd2 {[%emt 0:00:15]} Be7 {[%emt 0:00:23]} 5. Ngf3 {[%emt 0:00:26]} O-O {[%emt 0:00:17]} 6. c3 {[%emt 0:00:25]} Nbd7 {[%emt 0:00:02]} 7. Bd3 {[%emt 0:00:55]} b6 {[%emt 0:00:33]} 8. Ne5 {[%emt 0:02:44]} Bb7 {[%emt 0:01:18]} 9. Ndf3 {[%emt 0:04:14]} Ne4 {[%emt 0:01:12]} 10. Nxd7 {[%emt 0:04:15]} Qxd7 {[%emt 0:00:11]} 11. Ne5 {[%emt 0:00:09]} Qd8 {[%emt 0:00:47]} 12. f3 {[%emt 0:01:51]} Nf6 {[%emt 0:00:40]} 13. Qc2 {[%emt 0:01:34]} h6 {[%emt 0:06:30]} 14. O-O-O {[%emt 0:00:38]} a5 {[%emt 0:05:25]} 15. g4 {[%emt 0:01:15]} a4 {[%emt 0:04:52]} 16. a3 {[%emt 0:00:50]} Ba6 {[%emt 0:02:18]} 17. Bxa6 {[%emt 0:01:14]} Rxa6 {[%emt 0:00:38]} 18. h4 {[%emt 0:00:07]} 1-0

[Event "DVM U10 2024"]
[Site "Duesseldorf"]
[Date "2024.12.27"]
[Round "1"]
[White "Dombert, Johannes"]
[Black "Leppin, Mattis"]
[Result "1/2-1/2"]
[ECO "B19"]
[WhiteElo "1611"]
[BlackElo "1138"]
[Annotator "NA RC"]
[PlyCount "78"]
[EventDate "2024.12.23"]
[EventType "team-tourn"]
[EventRounds "7"]
[EventCountry "GER"]
[SourceTitle "playchess.com"]
[Source "ChessBase"]
[SourceQuality "1"]
[TimeControl "3300+5"]

1. e4 {[%emt 0:00:02]} c6 {[%emt 0:00:06]} 2. d4 {[%emt 0:00:04]} d5 {[%emt 0:00:05]} 3. Nc3 {[%emt 0:00:03]} dxe4 {[%emt 0:00:53]} 4. Nxe4 {[%emt 0:00:06]} Bf5 {[%emt 0:00:05]} 5. Ng3 {[%emt 0:00:07]} Bg6 {[%emt 0:00:22]} 6. Nf3 {[%emt 0:00:27]} Nf6 {[%emt 0:00:13]} 7. h4 {[%emt 0:01:04]} h6 {[%emt 0:00:33]} 8. Bd3 {[%emt 0:01:25]} Bh7 {[%emt 0:02:27]} 9. Bxh7 {[%emt 0:01:45]} Nxh7 {[%emt 0:00:07]} 10. O-O {[%emt 0:01:11]} e6 {[%emt 0:00:24]} 11. Be3 {[%emt 0:07:33]} Bd6 {[%emt 0:00:10]} 12. Ne4 {[%emt 0:00:50]} O-O {[%emt 0:01:32]} 13. g3 {[%emt 0:02:37]} f5 {[%emt 0:00:57]} 14. Nxd6 {[%emt 0:00:38]} Qxd6 {[%emt 0:00:08]} 15. Bf4 {[%emt 0:00:29]} Qe7 {[%emt 0:00:58]} 16. Ne5 {[%emt 0:02:41]} Qe8 {[%emt 0:00:41]} 17. h5 {[%emt 0:03:35]} Rf6 {[%emt 0:01:55]} 18. Re1 {[%emt 0:06:27]} Nd7 {[%emt 0:00:11]} 19. Nxd7 {[%emt 0:01:57]} Qxd7 {[%emt 0:00:13]} 20. c3 {[%emt 0:00:11]} Re8 {[%emt 0:01:20]} 21. Qb3 {[%emt 0:01:38]} b6 {[%emt 0:03:41]} 22. Kg2 {[%emt 0:01:13]} Rf7 {[%emt 0:00:52]} 23. Be5 {[%emt 0:04:35]} Nf6 {[%emt 0:00:27]} 24. Bxf6 {[%emt 0:00:13]} Rxf6 {[%emt 0:00:07]} 25. Re2 {[%emt 0:00:42]} f4 {[%emt 0:01:48]} 26. gxf4 {[%emt 0:01:20]} Rxf4 {[%emt 0:00:07]} 27. Rh1 {[%emt 0:01:31]} Qe7 {[%emt 0:03:55]} 28. Rh3 {[%emt 0:00:51]} Rh4 {[%emt 0:02:13]} 29. f3 {[%emt 0:02:14]} Qg5+ {[%emt 0:01:43]} 30. Rg3 {[%emt 0:00:15]} Qf6 {[%emt 0:00:49]} 31. Qc2 {[%emt 0:01:58]} Rxh5 {[%emt 0:01:35]} 32. Qg6 {[%emt 0:00:11]} Qxg6 {[%emt 0:01:22]} 33. Rxg6 {[%emt 0:00:04]} Kf7 {[%emt 0:00:09]} 34. Rg4 {[%emt 0:00:29]} e5 {[%emt 0:01:33]} 35. Rge4 {[%emt 0:00:13]} Kf6 {[%emt 0:00:23]} 36. f4 {[%emt 0:00:10]} Re6 {[%emt 0:03:11]} 37. dxe5+ {[%emt 0:00:20]} Kf5 {[%emt 0:00:48]} 38. Kf3 {[%emt 0:01:40]} Rh3+ {[%emt 0:00:25]} 39. Kg2 {[%emt 0:00:19]} Rh5 {[%emt 0:00:22]} 1/2-1/2

[Event "DVM U10 2024"]
[Site "Duesseldorf"]
[Date "2024.12.27"]
[Round "1"]
[White "Wang, Hanyu"]
[Black "Ju, Eric Zirui"]
[Result "0-1"]
[ECO "B51"]
[WhiteElo "1606"]
[BlackElo "1126"]
[Annotator "NA RC"]
[PlyCount "112"]
[EventDate "2024.12.23"]
[EventType "team-tourn"]
[EventRounds "7"]
[EventCountry "GER"]
[SourceTitle "playchess.com"]
[Source "ChessBase"]
[SourceQuality "1"]
[TimeControl "3300+5"]

1. e4 {[%emt 0:00:06]} c5 {[%emt 0:00:01]} 2. Nf3 {[%emt 0:00:11]} d6 {[%emt 0:00:14]} 3. Nc3 {[%emt 0:00:17]} Nc6 {[%emt 0:00:28]} 4. Bb5 {[%emt 0:00:18]} Bd7 {[%emt 0:01:06]} 5. Bxc6 {[%emt 0:00:00]} Bxc6 {[%emt 0:00:14]} 6. d3 {[%emt 0:00:09]} e6 {[%emt 0:00:38]} 7. Qe2 {[%emt 0:00:15]} Ne7 {[%emt 0:00:26]} 8. Be3 {[%emt 0:00:45]} b6 {[%emt 0:00:29]} 9. O-O {[%emt 0:00:17]} g6 {[%emt 0:00:37]} 10. Rad1 {[%emt 0:00:09]} d5 {[%emt 0:01:35]} 11. exd5 {[%emt 0:00:25]} exd5 {[%emt 0:00:22]} 12. Bg5 {[%emt 0:00:20]} Bg7 {[%emt 0:01:22]} 13. Rfe1 {[%emt 0:00:13]} f6 {[%emt 0:01:10]} 14. Bh4 {[%emt 0:01:17]} Kf7 {[%emt 0:01:26]} 15. d4 {[%emt 0:01:30]} Re8 {[%emt 0:01:16]} 16. Qd2 {[%emt 0:02:15]} c4 {[%emt 0:00:53]} 17. b3 {[%emt 0:01:28]} cxb3 {[%emt 0:00:21]} 18. axb3 {[%emt 0:00:14]} Nf5 {[%emt 0:00:35]} 19. Bg3 {[%emt 0:00:33]} Nxg3 {[%emt 0:01:29]} 20. fxg3 {[%emt 0:00:00]} Qd6 {[%emt 0:00:44]} 21. g4 {[%emt 0:02:28]} Re7 {[%emt 0:01:37]} 22. g5 {[%emt 0:00:29]} f5 {[%emt 0:00:18]} 23. Rxe7+ {[%emt 0:01:00]} Qxe7 {[%emt 0:00:41]} 24. Re1 {[%emt 0:00:28]} Qd6 {[%emt 0:01:19]} 25. Ne5+ {[%emt 0:00:16]} Bxe5 {[%emt 0:00:27]} 26. dxe5 {[%emt 0:00:05]} Qc5+ {[%emt 0:00:36]} 27. Kh1 {[%emt 0:02:26]} d4 {[%emt 0:00:45]} 28. Ne2 {[%emt 0:01:21]} Rd8 {[%emt 0:01:00]} 29. Nf4 {[%emt 0:00:42]} Qc3 {[%emt 0:02:02]} 30. Qxc3 {[%emt 0:00:00]} dxc3 {[%emt 0:00:18]} 31. e6+ {[%emt 0:00:07]} Ke7 {[%emt 0:00:26]} 32. Nd3 {[%emt 0:00:37]} Be4 {[%emt 0:00:22]} 33. Ne5 {[%emt 0:02:27]} Rd2 {[%emt 0:00:36]} 34. Nf3 {[%emt 0:01:20]} Rxc2 {[%emt 0:00:17]} 35. Kg1 {[%emt 0:00:32]} Rb2 {[%emt 0:00:21]} 36. Rc1 {[%emt 0:01:00]} Rb1 {[%emt 0:00:18]} 37. Rxb1 {[%emt 0:00:16]} Bxb1 {[%emt 0:00:08]} 38. Nd4 {[%emt 0:00:31]} c2 {[%emt 0:00:18]} 39. Ne2 {[%emt 0:00:08]} a5 {[%emt 0:01:10]} 40. Kf1 {[%emt 0:00:00]} b5 {[%emt 0:00:24]} 41. Ke1 {[%emt 0:00:06]} a4 {[%emt 0:00:52]} 42. bxa4 {[%emt 0:00:00]} bxa4 {[%emt 0:00:36]} 43. Kd2 {[%emt 0:00:00]} a3 {[%emt 0:00:31]} 44. Kc1 {[%emt 0:00:38]} a2 {[%emt 0:00:53]} 45. Kb2 {[%emt 0:00:08]} Kxe6 {[%emt 0:00:11]} 46. Nd4+ {[%emt 0:00:26]} Kd5 {[%emt 0:00:39]} 47. Nxc2 {[%emt 0:00:07]} Bxc2 {[%emt 0:00:29]} 48. Kxa2 {[%emt 0:00:02]} Ke4 {[%emt 0:00:30]} 49. Kb2 {[%emt 0:00:06]} Ba4 {[%emt 0:00:48]} 50. Kc1 {[%emt 0:00:05]} Ke3 {[%emt 0:00:29]} 51. g3 {[%emt 0:00:13]} Kf2 {[%emt 0:00:16]} 52. Kd2 {[%emt 0:00:09]} Kg2 53. Ke2 {[%emt 0:00:19]} Kxh2 {[%emt 0:01:19]} 54. Kf2 {[%emt 0:00:00]} Bc6 {[%emt 0:00:22]} 55. g4 {[%emt 0:00:08]} fxg4 {[%emt 0:00:16]} 56. Kf1 {[%emt 0:00:07]} g3 {[%emt 0:00:26]} 0-1